[Event "*** Titled Tuesday Blitz"]
[Site "Chess.com"]
[Date "2020.03.03"]
[Round "5"]
[White "ChristianAlm"]
[Black "volcanoexplorer"]
[Result "1-0"]
[WhiteElo "2364"]
[BlackElo "2574"]
[TimeControl "180+1"]
[EndTime "13:53:43 PST"]
[Termination "ChristianAlm won by checkmate"]

1. Nf3 {[%clk 0:02:59.5]} 1... Nf6 {[%clk 0:02:59.8]} 2. c4 {[%clk 0:03:00.4]}
2... b6 {[%clk 0:02:59.2]} 3. g3 {[%clk 0:03:01.3]} 3... Bb7 {[%clk 0:02:59.2]}
4. Bg2 {[%clk 0:03:02.2]} 4... e6 {[%clk 0:02:59.9]} 5. O-O {[%clk 0:03:02.6]}
5... Be7 {[%clk 0:03:00.4]} 6. b3 {[%clk 0:03:03.1]} 6... O-O {[%clk 0:03:00.7]}
7. Bb2 {[%clk 0:03:03.4]} 7... d6 {[%clk 0:03:01]} 8. d3 {[%clk 0:03:03]} 8...
Nbd7 {[%clk 0:03:01.2]} 9. Nbd2 {[%clk 0:03:03]} 9... a5 {[%clk 0:03:01.4]} 10.
Rc1 {[%clk 0:03:01.5]} 10... Re8 {[%clk 0:03:01.5]} 11. Qc2 {[%clk 0:02:54.7]}
11... Bf8 {[%clk 0:03:00.5]} 12. Rfd1 {[%clk 0:02:54.9]} 12... g6 {[%clk
0:02:58.8]} 13. e4 {[%clk 0:02:50.1]} 13... Bg7 {[%clk 0:02:54.2]} 14. h4 {[%clk
0:02:48.3]} 14... e5 {[%clk 0:02:36.5]} 15. Re1 {[%clk 0:02:36]} 15... Nc5
{[%clk 0:02:35.6]} 16. Nf1 {[%clk 0:02:27.3]} 16... Ne6 {[%clk 0:01:59.4]} 17.
Ne3 {[%clk 0:02:26.1]} 17... c5 {[%clk 0:01:54.1]} 18. Nd5 {[%clk 0:02:25.3]}
18... Nxd5 {[%clk 0:01:49]} 19. exd5 {[%clk 0:02:26.2]} 19... Nf8 {[%clk
0:01:10.7]} 20. Re2 {[%clk 0:02:18.5]} 20... Bc8 {[%clk 0:01:08.3]} 21. Nh2
{[%clk 0:02:07.5]} 21... Qc7 {[%clk 0:00:54.3]} 22. Rce1 {[%clk 0:02:06.5]}
22... Bd7 {[%clk 0:00:53.5]} 23. Bc1 {[%clk 0:02:00.5]} 23... a4 {[%clk
0:00:52]} 24. Be3 {[%clk 0:01:54.5]} 24... axb3 {[%clk 0:00:51]} 25. axb3 {[%clk
0:01:55.4]} 25... f5 {[%clk 0:00:39.5]} 26. Qd2 {[%clk 0:01:41.1]} 26... Ra3
{[%clk 0:00:36]} 27. b4 {[%clk 0:01:39.8]} 27... Rea8 {[%clk 0:00:34.9]} 28. f4
{[%clk 0:01:13.9]} 28... exf4 {[%clk 0:00:29.1]} 29. Bxf4 {[%clk 0:01:14.8]}
29... Bc3 {[%clk 0:00:29]} 30. Qc2 {[%clk 0:01:05]} 30... Bxe1 {[%clk
0:00:24.9]} 31. Rxe1 {[%clk 0:01:05.9]} 31... Ra2 {[%clk 0:00:22.8]} 32. Qc1
{[%clk 0:01:05.4]} 32... cxb4 {[%clk 0:00:22]} 33. Bh6 {[%clk 0:00:47.5]} 33...
Qc5+ {[%clk 0:00:19.2]} 34. Be3 {[%clk 0:00:41.2]} 34... Qa5 {[%clk 0:00:17.9]}
35. Bd4 {[%clk 0:00:40.1]} 35... Re8 {[%clk 0:00:13.2]} 36. Rxe8 {[%clk
0:00:30.9]} 36... Bxe8 {[%clk 0:00:11.1]} 37. Qh6 {[%clk 0:00:29.6]} 37... Ra1+
{[%clk 0:00:06.6]} 38. Nf1 {[%clk 0:00:29.1]} 38... Qa7 {[%clk 0:00:01.9]} 39.
Qe3 {[%clk 0:00:22.6]} 39... Ra2 {[%clk 0:00:02]} 40. Qxe8 {[%clk 0:00:20.5]}
40... Qf7 {[%clk 0:00:02.2]} 41. Qxf7+ {[%clk 0:00:18.7]} 41... Kxf7 {[%clk
0:00:03.1]} 42. Bxb6 {[%clk 0:00:18.9]} 42... b3 {[%clk 0:00:04]} 43. Bd4 {[%clk
0:00:18.9]} 43... b2 {[%clk 0:00:04.7]} 44. Bxb2 {[%clk 0:00:18.3]} 44... Rxb2
{[%clk 0:00:05.6]} 45. d4 {[%clk 0:00:18.7]} 45... Nd7 {[%clk 0:00:06]} 46. Ne3
{[%clk 0:00:18.4]} 46... Re2 {[%clk 0:00:06.2]} 47. Nf1 {[%clk 0:00:14.2]} 47...
Rc2 {[%clk 0:00:06.6]} 48. Ne3 {[%clk 0:00:13.4]} 48... Re2 {[%clk 0:00:06.9]}
49. Nf1 {[%clk 0:00:13.4]} 49... Kf6 {[%clk 0:00:07.5]} 50. Bf3 {[%clk
0:00:12.1]} 50... Re1 {[%clk 0:00:08.1]} 51. Kf2 {[%clk 0:00:11.7]} 51... Rc1
{[%clk 0:00:08.5]} 52. Ne3 {[%clk 0:00:12.6]} 52... Nb6 {[%clk 0:00:09]} 53. Be2
{[%clk 0:00:11.3]} 53... h6 {[%clk 0:00:09.5]} 54. Kf3 {[%clk 0:00:11.2]} 54...
g5 {[%clk 0:00:10]} 55. hxg5+ {[%clk 0:00:12.1]} 55... hxg5 {[%clk 0:00:10.9]}
56. g4 {[%clk 0:00:13]} 56... f4 {[%clk 0:00:10.1]} 57. Nf5 {[%clk 0:00:12.7]}
57... Rc3+ {[%clk 0:00:09.5]} 58. Ke4 {[%clk 0:00:10.6]} 58... Nxc4 {[%clk
0:00:09.3]} 59. Bxc4 {[%clk 0:00:10.3]} 59... Rxc4 {[%clk 0:00:08.8]} 60. Nxd6
{[%clk 0:00:10.5]} 60... Rc3 {[%clk 0:00:04.8]} 61. Nf5 {[%clk 0:00:09.9]} 61...
f3 {[%clk 0:00:04.1]} 62. d6 {[%clk 0:00:08]} 62... f2 {[%clk 0:00:04]} 63. d7
{[%clk 0:00:05.8]} 63... f1=Q {[%clk 0:00:01.5]} 64. d8=Q+ {[%clk 0:00:05.5]}
64... Kg6 {[%clk 0:00:01.1]} 65. Qg8+ {[%clk 0:00:05.1]} 65... Kf6 {[%clk
0:00:01.2]} 66. Qf8+ {[%clk 0:00:04.9]} 66... Ke6 {[%clk 0:00:01.8]} 67. Qe7#
{[%clk 0:00:04.6]} 1-0

[Event "*** Titled Tuesday Blitz"]
[Site "Chess.com"]
[Date "2020.03.03"]
[Round "5"]
[White "x-3738459472"]
[Black "kleinebeer98"]
[Result "0-1"]
[WhiteElo "2543"]
[BlackElo "2707"]
[TimeControl "180+1"]
[EndTime "13:54:01 PST"]
[Termination "kleinebeer98 won by resignation"]

1. d4 {[%clk 0:03:00.9]} 1... e6 {[%clk 0:02:58.5]} 2. Bf4 {[%clk 0:03:00.1]}
2... c5 {[%clk 0:02:56.1]} 3. e3 {[%clk 0:02:59.7]} 3... Qb6 {[%clk 0:02:55.6]}
4. Nc3 {[%clk 0:02:59.6]} 4... cxd4 {[%clk 0:02:55.3]} 5. exd4 {[%clk
0:02:59.2]} 5... Nc6 {[%clk 0:02:54.4]} 6. Nf3 {[%clk 0:02:58.5]} 6... a6 {[%clk
0:02:47.9]} 7. Rb1 {[%clk 0:02:52.6]} 7... Nf6 {[%clk 0:02:46.5]} 8. a3 {[%clk
0:02:48.2]} 8... Qa5 {[%clk 0:02:42.5]} 9. Bd3 {[%clk 0:02:32.5]} 9... Nd5
{[%clk 0:02:35.8]} 10. Bd2 {[%clk 0:02:30.6]} 10... Nxc3 {[%clk 0:02:35.6]} 11.
Bxc3 {[%clk 0:02:30.1]} 11... Qh5 {[%clk 0:02:35.1]} 12. O-O {[%clk 0:02:29.8]}
12... d5 {[%clk 0:02:24.1]} 13. Bd2 {[%clk 0:02:20.9]} 13... Bd6 {[%clk
0:02:20.4]} 14. c3 {[%clk 0:02:19.8]} 14... O-O {[%clk 0:02:13.4]} 15. h3 {[%clk
0:02:19.2]} 15... Bd7 {[%clk 0:02:06.6]} 16. Qe2 {[%clk 0:02:18.8]} 16... f5
{[%clk 0:02:04.9]} 17. Rfe1 {[%clk 0:02:17.7]} 17... Rae8 {[%clk 0:02:00.5]} 18.
b4 {[%clk 0:02:15.6]} 18... b5 {[%clk 0:01:53.2]} 19. a4 {[%clk 0:02:10.2]}
19... Na7 {[%clk 0:01:52.1]} 20. Ne5 {[%clk 0:02:06.6]} 20... Qxe2 {[%clk
0:01:50.9]} 21. Rxe2 {[%clk 0:02:07.5]} 21... Bxe5 {[%clk 0:01:48.7]} 22. Rxe5
{[%clk 0:02:07.6]} 22... Kf7 {[%clk 0:01:45.2]} 23. axb5 {[%clk 0:01:59.1]}
23... Bxb5 {[%clk 0:01:46.1]} 24. Bf1 {[%clk 0:01:58.5]} 24... Rc8 {[%clk
0:01:41]} 25. Ree1 {[%clk 0:01:54.9]} 25... Bxf1 {[%clk 0:01:38.7]} 26. Kxf1
{[%clk 0:01:54.3]} 26... Nb5 {[%clk 0:01:39.6]} 27. Ra1 {[%clk 0:01:53.9]} 27...
Rc6 {[%clk 0:01:39.7]} 28. Ra5 {[%clk 0:01:52.6]} 28... Nd6 {[%clk 0:01:26.2]}
29. Rea1 {[%clk 0:01:50.9]} 29... Nc4 {[%clk 0:01:25.9]} 30. R5a2 {[%clk
0:01:46.7]} 30... Nxd2+ {[%clk 0:01:05.5]} 31. Rxd2 {[%clk 0:01:45.3]} 31...
Rfc8 {[%clk 0:01:06.4]} 32. g4 {[%clk 0:01:36.2]} 32... Kf6 {[%clk 0:01:04.6]}
33. gxf5 {[%clk 0:01:34.2]} 33... Kxf5 {[%clk 0:01:05.5]} 34. Re2 {[%clk
0:01:34.4]} 34... Rxc3 {[%clk 0:01:04]} 35. Re5+ {[%clk 0:01:30.3]} 35... Kf6
{[%clk 0:01:01.7]} 36. Rxa6 {[%clk 0:01:29.9]} 36... R8c6 {[%clk 0:01:02]} 37.
Ra8 {[%clk 0:01:25.6]} 37... Rxh3 {[%clk 0:00:57.6]} 38. b5 {[%clk 0:01:22.5]}
38... Rb6 {[%clk 0:00:54.9]} 39. Rf8+ {[%clk 0:01:21.8]} 39... Ke7 {[%clk
0:00:52.9]} 40. Ra8 {[%clk 0:01:12.8]} 40... Rb3 {[%clk 0:00:35.8]} 41. Ra7+
{[%clk 0:00:58.7]} 41... Kf6 {[%clk 0:00:34.1]} 42. Rh5 {[%clk 0:00:58.6]} 42...
h6 {[%clk 0:00:27.2]} 43. Rh4 {[%clk 0:00:58.7]} 43... R3xb5 {[%clk 0:00:20.2]}
44. Rf4+ {[%clk 0:00:57.8]} 44... Kg5 {[%clk 0:00:20.6]} 45. Rf3 {[%clk
0:00:58.2]} 45... g6 {[%clk 0:00:20.5]} 46. Rg3+ {[%clk 0:00:57.4]} 46... Kf6
{[%clk 0:00:19.6]} 47. Rf3+ {[%clk 0:00:57.3]} 47... Kg5 {[%clk 0:00:20]} 48.
Rg3+ {[%clk 0:00:57.5]} 48... Kh5 {[%clk 0:00:19.4]} 49. Rg7 {[%clk 0:00:50.7]}
49... g5 {[%clk 0:00:18.1]} 50. Kg2 {[%clk 0:00:50.9]} 50... Rb3 {[%clk
0:00:16.4]} 51. f3 {[%clk 0:00:30]} 51... Rb2+ {[%clk 0:00:16.4]} 52. Kh3 {[%clk
0:00:30.1]} 52... Rf2 {[%clk 0:00:16.6]} 53. f4 {[%clk 0:00:20.9]} 53... Rxf4
{[%clk 0:00:14.8]} 54. Ra7 {[%clk 0:00:14.7]} 54... Rh4+ {[%clk 0:00:13.6]} 55.
Kg2 {[%clk 0:00:13.8]} 55... Rb2+ {[%clk 0:00:14.2]} 56. Kf3 {[%clk 0:00:13.7]}
56... Rb3+ {[%clk 0:00:13.9]} 57. Kg2 {[%clk 0:00:13.2]} 57... Rxg3+ {[%clk
0:00:13]} 58. Kxg3 {[%clk 0:00:14.1]} 58... Rxd4 {[%clk 0:00:13.6]} 59. Re7
{[%clk 0:00:15]} 59... Re4 {[%clk 0:00:13.6]} 60. Kf3 {[%clk 0:00:15.5]} 60...
Kg6 {[%clk 0:00:13.5]} 61. Kf2 {[%clk 0:00:15.4]} 61... h5 {[%clk 0:00:13.7]}
62. Re8 {[%clk 0:00:16.3]} 62... h4 {[%clk 0:00:13.9]} 63. Rg8+ {[%clk
0:00:16.9]} 63... Kf5 {[%clk 0:00:14.2]} 64. Kf3 {[%clk 0:00:17.4]} 64... Rf4+
{[%clk 0:00:13.1]} 65. Kg2 {[%clk 0:00:16.9]} 65... Ra4 {[%clk 0:00:11.7]} 66.
Rf8+ {[%clk 0:00:16.8]} 66... Kg4 {[%clk 0:00:12]} 67. Rb8 {[%clk 0:00:17.3]}
67... Ra2+ {[%clk 0:00:11.8]} 68. Kh1 {[%clk 0:00:18.2]} 68... e5 {[%clk
0:00:11.9]} 69. Rb4+ {[%clk 0:00:18.6]} 69... e4 {[%clk 0:00:12.2]} 70. Rb5
{[%clk 0:00:19.2]} 70... e3 {[%clk 0:00:08.3]} 71. Rxd5 {[%clk 0:00:18.8]} 71...
e2 {[%clk 0:00:08.5]} 72. Re5 {[%clk 0:00:19]} 72... Ra1+ {[%clk 0:00:08.6]} 73.
Kh2 {[%clk 0:00:18.8]} 73... e1=Q {[%clk 0:00:07.8]} 74. Re4+ {[%clk 0:00:19.5]}
74... Kf3 {[%clk 0:00:05.9]} 75. Rf4+ {[%clk 0:00:16.1]} 75... Kxf4 {[%clk
0:00:04.6]} 0-1

[Event "*** Titled Tuesday Blitz"]
[Site "Chess.com"]
[Date "2020.03.03"]
[Round "5"]
[White "Hrant_ChessMood"]
[Black "Bryakin_Mikhail"]
[Result "1-0"]
[WhiteElo "2941"]
[BlackElo "2673"]
[TimeControl "180+1"]
[EndTime "13:54:18 PST"]
[Termination "Hrant_ChessMood won by checkmate"]

1. d4 {[%clk 0:03:00.9]} 1... e6 {[%clk 0:02:59.4]} 2. c4 {[%clk 0:03:01.2]}
2... f5 {[%clk 0:02:59.8]} 3. Nf3 {[%clk 0:02:59.3]} 3... Nf6 {[%clk 0:03:00.1]}
4. Bf4 {[%clk 0:02:54.6]} 4... d5 {[%clk 0:02:55.7]} 5. e3 {[%clk 0:02:52.5]}
5... c6 {[%clk 0:02:56.1]} 6. Nbd2 {[%clk 0:02:50.5]} 6... Be7 {[%clk 0:02:56]}
7. Ne5 {[%clk 0:02:50.2]} 7... Nbd7 {[%clk 0:02:51.8]} 8. Be2 {[%clk 0:02:45.1]}
8... Nxe5 {[%clk 0:02:49.6]} 9. Bxe5 {[%clk 0:02:46]} 9... O-O {[%clk
0:02:48.9]} 10. O-O {[%clk 0:02:45.8]} 10... Ne4 {[%clk 0:02:38.2]} 11. a3
{[%clk 0:02:41.6]} 11... b6 {[%clk 0:02:33.3]} 12. Rc1 {[%clk 0:02:38.6]} 12...
Bb7 {[%clk 0:02:30.3]} 13. Nxe4 {[%clk 0:02:20.1]} 13... dxe4 {[%clk 0:02:22.6]}
14. c5 {[%clk 0:02:19.5]} 14... b5 {[%clk 0:02:17.3]} 15. b4 {[%clk 0:02:16.9]}
15... Bf6 {[%clk 0:02:10.9]} 16. Bd6 {[%clk 0:02:14.7]} 16... Be7 {[%clk
0:02:10.9]} 17. Qb3 {[%clk 0:02:11.8]} 17... Kf7 {[%clk 0:02:10.9]} 18. Bxe7
{[%clk 0:01:58.6]} 18... Kxe7 {[%clk 0:02:10.7]} 19. f3 {[%clk 0:01:59.1]} 19...
Qd5 {[%clk 0:02:09]} 20. Qc3 {[%clk 0:01:57.9]} 20... g6 {[%clk 0:02:00.6]} 21.
a4 {[%clk 0:01:56.6]} 21... a6 {[%clk 0:02:00.3]} 22. Ra1 {[%clk 0:01:54.1]}
22... h5 {[%clk 0:01:44.6]} 23. Bd1 {[%clk 0:01:50.3]} 23... exf3 {[%clk
0:01:11.8]} 24. Bxf3 {[%clk 0:01:47.7]} 24... Qd7 {[%clk 0:01:12.2]} 25. axb5
{[%clk 0:01:38.4]} 25... axb5 {[%clk 0:01:01.3]} 26. d5 {[%clk 0:01:20.2]} 26...
exd5 {[%clk 0:00:47.2]} 27. Rxa8 {[%clk 0:01:18.1]} 27... Bxa8 {[%clk
0:00:46.4]} 28. Qg7+ {[%clk 0:01:12.1]} 28... Rf7 {[%clk 0:00:45.8]} 29. Qxg6
{[%clk 0:01:11]} 29... Qe6 {[%clk 0:00:46.3]} 30. Qxe6+ {[%clk 0:01:06.6]} 30...
Kxe6 {[%clk 0:00:47.2]} 31. Ra1 {[%clk 0:01:06.3]} 31... Bb7 {[%clk 0:00:46.9]}
32. Bxh5 {[%clk 0:01:00.3]} 32... Rh7 {[%clk 0:00:47.1]} 33. Bf3 {[%clk
0:00:54.7]} 33... Bc8 {[%clk 0:00:46.1]} 34. g3 {[%clk 0:00:54.1]} 34... Ke5
{[%clk 0:00:46.3]} 35. h4 {[%clk 0:00:46.9]} 35... Be6 {[%clk 0:00:43]} 36. Kf2
{[%clk 0:00:44.5]} 36... Rc7 {[%clk 0:00:41.5]} 37. Ra6 {[%clk 0:00:42]} 37...
d4 {[%clk 0:00:33]} 38. Rxc6 {[%clk 0:00:29.6]} 38... Re7 {[%clk 0:00:33]} 39.
Rd6 {[%clk 0:00:19.2]} 39... dxe3+ {[%clk 0:00:33.1]} 40. Kxe3 {[%clk
0:00:19.3]} 40... Ra7 {[%clk 0:00:34]} 41. Rd3 {[%clk 0:00:17.3]} 41... Bc4
{[%clk 0:00:34]} 42. Rd2 {[%clk 0:00:13.9]} 42... Ra4 {[%clk 0:00:34.3]} 43. c6
{[%clk 0:00:13.7]} 43... Ra3+ {[%clk 0:00:34.8]} 44. Kf2 {[%clk 0:00:13.1]}
44... Rc3 {[%clk 0:00:35.3]} 45. h5 {[%clk 0:00:13.2]} 45... f4 {[%clk 0:00:33]}
46. g4 {[%clk 0:00:10.8]} 46... Kf6 {[%clk 0:00:28.4]} 47. h6 {[%clk 0:00:11.1]}
47... Bg8 {[%clk 0:00:28]} 48. Rd6+ {[%clk 0:00:09.6]} 48... Ke5 {[%clk
0:00:26.6]} 49. Rd8 {[%clk 0:00:09.1]} 49... Rc2+ {[%clk 0:00:26.7]} 50. Ke1
{[%clk 0:00:09.5]} 50... Bh7 {[%clk 0:00:27.6]} 51. Rd7 {[%clk 0:00:08.9]} 51...
Bg6 {[%clk 0:00:22.1]} 52. h7 {[%clk 0:00:08.6]} 52... Bxh7 {[%clk 0:00:22.6]}
53. Rxh7 {[%clk 0:00:08.9]} 53... Kd4 {[%clk 0:00:23.5]} 54. Re7 {[%clk
0:00:08.6]} 54... Rc1+ {[%clk 0:00:23.8]} 55. Kf2 {[%clk 0:00:08.9]} 55... Rc2+
{[%clk 0:00:23.7]} 56. Re2 {[%clk 0:00:09.4]} 56... Rc5 {[%clk 0:00:24.6]} 57.
Re4+ {[%clk 0:00:08.1]} 57... Kd3 {[%clk 0:00:25]} 58. Rxf4 {[%clk 0:00:09]}
58... Rc2+ {[%clk 0:00:25.9]} 59. Kg3 {[%clk 0:00:09.2]} 59... Rc3 {[%clk
0:00:26.8]} 60. Rf5 {[%clk 0:00:09.4]} 60... Rc1 {[%clk 0:00:27.3]} 61. Rc5
{[%clk 0:00:08.7]} 61... Rg1+ {[%clk 0:00:26.7]} 62. Kf4 {[%clk 0:00:09.1]}
62... Rb1 {[%clk 0:00:25.8]} 63. c7 {[%clk 0:00:09.4]} 63... Rxb4+ {[%clk
0:00:21]} 64. Ke5 {[%clk 0:00:09.6]} 64... Rc4 {[%clk 0:00:19.1]} 65. Rxc4
{[%clk 0:00:09.2]} 65... bxc4 {[%clk 0:00:19.2]} 66. c8=Q {[%clk 0:00:10.1]}
66... c3 {[%clk 0:00:20.1]} 67. Be4+ {[%clk 0:00:10.2]} 67... Kd2 {[%clk
0:00:20.3]} 68. Kd4 {[%clk 0:00:10.4]} 68... Ke2 {[%clk 0:00:20.4]} 69. Qxc3
{[%clk 0:00:10]} 69... Kf2 {[%clk 0:00:21.3]} 70. Qf3+ {[%clk 0:00:09.2]} 70...
Ke1 {[%clk 0:00:22.2]} 71. Qg2 {[%clk 0:00:09.3]} 71... Kd1 {[%clk 0:00:22.4]}
72. Qf2 {[%clk 0:00:08.9]} 72... Kc1 {[%clk 0:00:22.5]} 73. Qc2# {[%clk
0:00:09.8]} 1-0

[Event "*** Titled Tuesday Blitz"]
[Site "Chess.com"]
[Date "2020.03.03"]
[Round "5"]
[White "josmito10"]
[Black "AminMolaei"]
[Result "1/2-1/2"]
[WhiteElo "2821"]
[BlackElo "2528"]
[TimeControl "180+1"]
[EndTime "13:54:28 PST"]
[Termination "Game drawn - insufficient material"]

1. d4 {[%clk 0:03:00.7]} 1... Nf6 {[%clk 0:02:59.5]} 2. c4 {[%clk 0:03:01.2]}
2... e6 {[%clk 0:02:59.5]} 3. g3 {[%clk 0:03:01.3]} 3... d5 {[%clk 0:02:59.2]}
4. Nf3 {[%clk 0:03:01.4]} 4... dxc4 {[%clk 0:02:59]} 5. Bg2 {[%clk 0:03:01.6]}
5... c5 {[%clk 0:02:59.5]} 6. O-O {[%clk 0:02:59.7]} 6... Nc6 {[%clk 0:02:59.3]}
7. Ne5 {[%clk 0:02:49.6]} 7... Nxe5 {[%clk 0:02:38.6]} 8. dxe5 {[%clk
0:02:49.5]} 8... Qxd1 {[%clk 0:02:39.2]} 9. Rxd1 {[%clk 0:02:50.4]} 9... Nd5
{[%clk 0:02:35.8]} 10. Na3 {[%clk 0:02:48.8]} 10... Bd7 {[%clk 0:02:19.3]} 11.
Nxc4 {[%clk 0:02:41.3]} 11... O-O-O {[%clk 0:02:07.5]} 12. Bg5 {[%clk
0:02:36.1]} 12... f6 {[%clk 0:01:55.5]} 13. exf6 {[%clk 0:02:36.3]} 13... gxf6
{[%clk 0:01:56.4]} 14. Bh4 {[%clk 0:02:07.7]} 14... Bb5 {[%clk 0:01:50.7]} 15.
Rdc1 {[%clk 0:01:57.5]} 15... Be7 {[%clk 0:01:48]} 16. a3 {[%clk 0:01:55.3]}
16... Kb8 {[%clk 0:01:44.6]} 17. e4 {[%clk 0:01:51.7]} 17... Nc7 {[%clk
0:01:40.8]} 18. e5 {[%clk 0:01:51.1]} 18... Rhf8 {[%clk 0:01:40.7]} 19. exf6
{[%clk 0:01:27.7]} 19... Bxf6 {[%clk 0:01:40.7]} 20. Bxf6 {[%clk 0:01:28.6]}
20... Rxf6 {[%clk 0:01:41.6]} 21. b4 {[%clk 0:01:29.1]} 21... cxb4 {[%clk
0:01:31.5]} 22. axb4 {[%clk 0:01:29.1]} 22... Bxc4 {[%clk 0:01:16]} 23. Rxc4
{[%clk 0:01:28.8]} 23... Rd2 {[%clk 0:01:16.3]} 24. f4 {[%clk 0:01:27.8]} 24...
a6 {[%clk 0:01:01.1]} 25. Rac1 {[%clk 0:01:22.7]} 25... Rf7 {[%clk 0:01:00.6]}
26. R1c2 {[%clk 0:01:18.2]} 26... Rd1+ {[%clk 0:00:57.7]} 27. Kf2 {[%clk
0:01:11.6]} 27... e5 {[%clk 0:00:57.6]} 28. Bf3 {[%clk 0:01:00.8]} 28... Rd3
{[%clk 0:00:48.4]} 29. Be4 {[%clk 0:01:00.9]} 29... Rb3 {[%clk 0:00:41]} 30. f5
{[%clk 0:01:00.9]} 30... Nb5 {[%clk 0:00:40.9]} 31. g4 {[%clk 0:00:54.2]} 31...
Rf8 {[%clk 0:00:11]} 32. Bd5 {[%clk 0:00:45.8]} 32... h5 {[%clk 0:00:09.9]} 33.
Be6 {[%clk 0:00:42.9]} 33... Nd6 {[%clk 0:00:07.3]} 34. g5 {[%clk 0:00:38.8]}
34... Nxc4 {[%clk 0:00:06.6]} 35. Rxc4 {[%clk 0:00:38.2]} 35... b5 {[%clk
0:00:04.2]} 36. Re4 {[%clk 0:00:33.7]} 36... Rb2+ {[%clk 0:00:04.6]} 37. Kg3
{[%clk 0:00:33.7]} 37... Rb1 {[%clk 0:00:04.5]} 38. g6 {[%clk 0:00:33.2]} 38...
Rg1+ {[%clk 0:00:04.3]} 39. Kh4 {[%clk 0:00:33.7]} 39... Kc7 {[%clk 0:00:04.3]}
40. Rxe5 {[%clk 0:00:33.3]} 40... Kd6 {[%clk 0:00:04.2]} 41. Rd5+ {[%clk
0:00:33.7]} 41... Ke7 {[%clk 0:00:04.7]} 42. Rd7+ {[%clk 0:00:34.6]} 42... Kf6
{[%clk 0:00:05.2]} 43. Ra7 {[%clk 0:00:31.9]} 43... Rg4+ {[%clk 0:00:05.6]} 44.
Kxh5 {[%clk 0:00:29.6]} 44... Rg2 {[%clk 0:00:05.6]} 45. h4 {[%clk 0:00:25]}
45... Rh8+ {[%clk 0:00:05.1]} 46. Rh7 {[%clk 0:00:25.7]} 46... Rxh7+ {[%clk
0:00:05.7]} 47. gxh7 {[%clk 0:00:26.6]} 47... Kg7 {[%clk 0:00:06.6]} 48. Bg8
{[%clk 0:00:26.9]} 48... Rf2 {[%clk 0:00:04.6]} 49. Kg5 {[%clk 0:00:26.9]} 49...
Rg2+ {[%clk 0:00:05]} 50. Kf4 {[%clk 0:00:27]} 50... Rf2+ {[%clk 0:00:05.5]} 51.
Ke5 {[%clk 0:00:27]} 51... Re2+ {[%clk 0:00:04.7]} 52. Kd6 {[%clk 0:00:27.2]}
52... Rf2 {[%clk 0:00:02.9]} 53. Ke6 {[%clk 0:00:15.4]} 53... Re2+ {[%clk
0:00:03]} 54. Kd7 {[%clk 0:00:15.1]} 54... Rf2 {[%clk 0:00:03.9]} 55. Be6 {[%clk
0:00:11.4]} 55... Kxh7 {[%clk 0:00:03.4]} 56. Ke7 {[%clk 0:00:12.1]} 56... Kg7
{[%clk 0:00:01.3]} 57. h5 {[%clk 0:00:12.5]} 57... Rf4 {[%clk 0:00:02]} 58. Bc8
{[%clk 0:00:08.8]} 58... Rxb4 {[%clk 0:00:01.5]} 59. f6+ {[%clk 0:00:08.3]}
59... Kh6 {[%clk 0:00:02.4]} 60. f7 {[%clk 0:00:04.5]} 60... Rf4 {[%clk
0:00:03.3]} 61. f8=Q+ {[%clk 0:00:02.2]} 61... Rxf8 {[%clk 0:00:04.2]} 62. Kxf8
{[%clk 0:00:03.1]} 62... Kxh5 {[%clk 0:00:05.1]} 63. Bxa6 {[%clk 0:00:03.5]}
63... b4 {[%clk 0:00:06]} 64. Bc4 {[%clk 0:00:04.4]} 64... b3 {[%clk 0:00:06.9]}
65. Bxb3 {[%clk 0:00:04.8]} 1/2-1/2